fUST/lending_fUST_20241026
["ID","MTS","AMOUNT","RATE_DAILY","PERIOD"]
[340863343,1729956644035,-1025.8,0.000287,31]
[340863344,1729956644045,-1025.8,0.000287,31]
[340863345,1729956644055,-1025.8,0.000287,31]
[340863346,1729956644065,-1025.8,0.000287,31]
[340863347,1729956644074,-1025.8,0.000287,31]
[340863348,1729956644086,-1025.8,0.000287,31]
[340863349,1729956644095,-1025.8,0.000287,31]
[340863350,1729956644105,-1025.8,0.000287,31]
[340863351,1729956644115,-1025.8,0.000287,31]
[340863352,1729956644126,-1025.8,0.000287,31]
[340863353,1729956644135,-1025.8,0.000287,31]
[340863354,1729956644145,-1025.8,0.000287,31]
[340863355,1729956644157,-1025.8,0.000287,31]
[340863356,1729956644174,-1025.8,0.000287,31]
[340863357,1729956644184,-1025.8,0.000287,31]
[340863358,1729956644194,-1025.8,0.000287,31]
[340863359,1729956644204,-1025.8,0.000287,31]
[340863360,1729956644215,-239.022,0.0002886,2]
[340863361,1729956644224,-150.01,0.00028999,2]
[340863362,1729956644234,-5968.0232738,0.00029,2]
[340863363,1729956644248,-415.67648111,0.00029041,120]
[340863364,1729956644258,-1000.0,0.00029184,5]
[340863365,1729956644268,-1000.0,0.00029184,5]
[340863366,1729956644278,-160.966972,0.00029349,2]
[340863367,1729956644288,-465.0267315,0.00029534,2]
[340863368,1729956644298,-1000.0,0.0002958,2]
[340863369,1729956644308,-500.0,0.00029669,2]
[340863370,1729956644318,-257.06722565,0.00029669,2]
[340863371,1729956644328,-648.67810346,0.00029669,2]
[340863372,1729956644338,-153424.521857,0.0002967,4]
[340863373,1729956644347,-500.0,0.00029673,5]
[340863374,1729956644357,-500.0,0.00029673,5]
[340863375,1729956644367,-500.0,0.00029673,5]
[340863376,1729956644377,-500.0,0.00029673,5]
[340863377,1729956644387,-506.05281296,0.00029673,5]
[340863378,1729956644397,-51141.5072857,0.0002968,4]
[340863379,1729956644411,-151.0,0.0002969,7]
[340863380,1729956644422,-171.955609,0.0002969,7]
[340863381,1729956644431,-151.0,0.0002969,7]
[340863382,1729956644441,-151.0,0.0002969,7]
[340863383,1729956644450,-151.0,0.0002969,7]
[340863384,1729956644461,-151.0,0.0002969,7]
[340863385,1729956644470,-151.0,0.0002969,7]
[340863386,1729956644480,-151.0,0.0002969,7]
[340863387,1729956644490,-151.0,0.0002969,7]
[340863388,1729956644500,-151.0,0.0002969,7]
[340863389,1729956644509,-884.64307,0.0002969,7]
[340863390,1729956644519,-884.64307,0.0002969,7]
[340863391,1729956644529,-680.745823,0.0002969,7]
[340863392,1729956644539,-680.745823,0.0002969,7]
[340863393,1729956644549,-151.0,0.0002969,7]
[340863394,1729956644559,-153.412077,0.0002969,7]
[340863395,1729956644569,-151.0,0.0002969,7]
[340863396,1729956644579,-260.1251,0.000297,120]
[340863397,1729956644589,-151.0,0.000297,7]
[340863398,1729956644599,-151.0,0.000297,7]
[340863399,1729956644609,-153.754164,0.000297,7]
[340863400,1729956644619,-151.0,0.000297,7]
[340863401,1729956644629,-186.026621,0.000297,7]
[340863402,1729956644639,-151.0,0.000297,7]
[340863403,1729956644652,-152.079528,0.000297,7]
[340863404,1729956644664,-151.0,0.000297,7]
[340863405,1729956644674,-151.0,0.000297,7]
[340863406,1729956644685,-884.64307,0.000297,7]
[340863407,1729956644695,-884.64307,0.000297,7]
[340863408,1729956644705,-680.745823,0.000297,7]
[340863409,1729956644715,-680.745823,0.000297,7]
[340863410,1729956644725,-151.967011,0.000297,7]
[340863411,1729956644735,-151.0,0.000297,7]
[340863412,1729956644745,-844.31718609,0.00029796,2]
[340863413,1729956644755,-300.0,0.000298,2]
[340863414,1729956644765,-500.0,0.00029973,5]
[340863415,1729956644774,-502.4851172,0.00029973,5]
[340863416,1729956644784,-151.0,0.0002999,7]
[340863417,1729956644794,-151.0,0.0002999,7]
[340863418,1729956644805,-151.0,0.0002999,7]
[340863419,1729956644815,-151.0,0.0002999,7]
[340863420,1729956644825,-192.408476,0.0002999,7]
[340863421,1729956644835,-153.663046,0.0002999,7]
[340863422,1729956644845,-151.0,0.0002999,7]
[340863423,1729956644855,-151.0,0.0002999,7]
[340863424,1729956644866,-151.0,0.0002999,7]
[340863425,1729956644875,-151.0,0.0002999,7]
[340863426,1729956644886,-1500.0,0.0003,2]
[340863427,1729956644896,-6585.60621482,0.0003,2]
[340863428,1729956644910,-151.0,0.0003,120]
[340863429,1729956644920,-200.0,0.0003,120]
[340863430,1729956644930,-1000.0,0.0003,120]
[340863431,1729956644940,-150.0,0.0003,2]
[340863432,1729956644950,-3000.0,0.0003,12]
[340863433,1729956644960,-233.89995878,0.0003,2]
[340863434,1729956644971,-151.0,0.0003,120]
[340863435,1729956644981,-9807.0,0.0003,30]
[340863436,1729956644991,-250.33675,0.0003,2]
[340863437,1729956645000,-151.0,0.0003,7]
[340863438,1729956645010,-151.0,0.0003,7]
[340863439,1729956645020,-1154.68,0.0003,14]
[340863440,1729956645031,-948.73,0.0003,30]
[340863441,1729956645040,-490.42,0.0003,30]
[340863442,1729956645050,-151.0,0.0003,7]
[340863443,1729956645060,-151.0,0.0003,7]
[340863444,1729956645070,-151.0,0.0003,7]
[340863445,1729956645081,-1212.13333345,0.0003,3]
[340863446,1729956645091,-153.460947,0.0003,7]
[340863447,1729956645101,-151.0,0.0003,7]
[340863448,1729956645112,-151.0,0.0003,7]
[340863449,1729956645121,-2221.0,0.0003,7]
[340863450,1729956645132,-10000.0,0.0003,7]
[340863451,1729956645142,-10000.0,0.0003,7]
[340863452,1729956645157,-10000.0,0.0003,7]
[340863453,1729956645171,-16724.9931895,0.0003,7]
[340863454,1729956645181,-151.0,0.0003,7]
[340863455,1729956645192,-151.0,0.0003,7]
[340863456,1729956645203,-1364.7483385,0.0003,7]
[340863457,1729956645215,-151.0,0.0003,7]
[340863458,1729956645225,-151.0,0.0003,7]
[340863459,1729956645235,-151.0,0.0003,7]
[340863460,1729956645246,-230.9268,0.0003,7]
[340863461,1729956645259,-884.64307,0.0003,7]
[340863462,1729956645270,-884.64307,0.0003,7]
[340863463,1729956645280,-680.745823,0.0003,7]
[340863464,1729956645290,-680.745823,0.0003,7]
[340863465,1729956645300,-169.462858,0.0003,7]
[340863466,1729956645311,-151.0,0.0003,7]
[340863467,1729956645320,-151.0,0.0003,7]
[340863468,1729956645330,-166.0,0.0003,2]
[340863469,1729956645341,-151.0,0.0003,7]
[340863470,1729956645352,-151.0,0.0003,7]
[340863471,1729956645363,-151.0,0.0003,7]
[340863472,1729956645375,-200.365236,0.0003,7]
[340863473,1729956645385,-151.0,0.0003,7]
[340863474,1729956645396,-200.365236,0.0003,7]
[340863475,1729956645410,-151.0,0.0003,7]
[340863476,1729956645419,-151.0,0.0003,7]
[340863477,1729956645429,-500.0,0.00030136,2]
[340863478,1729956645438,-187.14842445,0.0003065,2]
[340863479,1729956645448,-151.0,0.000307,7]
[340863480,1729956645459,-884.64307,0.000307,7]
[340863481,1729956645470,-884.64307,0.000307,7]
[340863482,1729956645481,-1025.8,0.000307,31]
[340863483,1729956645492,-1025.8,0.000307,31]
[340863484,1729956645503,-1025.8,0.000307,31]
[340863485,1729956645514,-1025.8,0.000307,31]
[340863486,1729956645524,-1025.8,0.000307,31]
[340863487,1729956645535,-1025.8,0.000307,31]
[340863488,1729956645546,-1025.8,0.000307,31]
[340863489,1729956645557,-1025.8,0.000307,31]
[340863490,1729956645567,-1025.8,0.000307,31]
[340863491,1729956645578,-1025.8,0.000307,31]
[340863506,1729956645813,-1025.8,0.000307,31]
[340863507,1729956645824,-1025.8,0.000307,31]
[340863508,1729956645834,-1025.8,0.000307,31]
[340863509,1729956645844,-1025.8,0.000307,31]
[340863510,1729956645855,-1025.8,0.000307,31]
[340863512,1729956645865,-1025.8,0.000307,31]
[340863513,1729956645875,-1025.8,0.000307,31]
[340863514,1729956645885,-1025.8,0.000307,31]
[340863515,1729956645895,-1025.8,0.000307,31]
[340863516,1729956645906,-1025.8,0.000307,31]
[340863517,1729956645916,-1025.8,0.000307,31]
[340863518,1729956645926,-1025.8,0.000307,31]
[340863519,1729956645937,-1025.8,0.000307,31]
[340863520,1729956645947,-1025.8,0.000307,31]
[340863521,1729956645956,-163.60441,0.000307,7]
[340863522,1729956645966,-151.0,0.000307,7]
[340863523,1729956645976,-200.365236,0.000307,7]
[340863524,1729956645986,-151.0,0.000307,7]
[340863525,1729956645996,-200.365236,0.000307,7]
[340863526,1729956646007,-151.0,0.000307,7]
[340863527,1729956646018,-151.0,0.000307,7]
[340863528,1729956646029,-151.0,0.00030748,7]
[340863529,1729956646040,-151.0,0.00030748,7]
[340863530,1729956646051,-500.0,0.00030748,2]
[340863531,1729956646062,-300.0,0.000308,3]
[340863532,1729956646072,-151.0,0.00030904,120]
[340863533,1729956646085,-2219.0,0.00031,7]
[340863534,1729956646094,-10000.0,0.00031,7]
[340863535,1729956646104,-10000.0,0.00031,7]
[340863536,1729956646113,-10000.0,0.00031,7]
[340863537,1729956646124,-16724.0,0.00031,7]
[340863538,1729956646135,-1363.0,0.00031,7]
[340863539,1729956646147,-151.0,0.00031,7]
[340863540,1729956646158,-465.00133658,0.00031011,2]
[340863541,1729956646171,-151.0,0.00031042,7]
[340863542,1729956646182,-151.0,0.00031042,7]
[340863543,1729956646191,-1500.0,0.00031187,5]
[340863544,1729956646201,-1500.0,0.00031187,5]
[340863545,1729956646212,-260.1251,0.000313,120]
[340863546,1729956646223,-500.0,0.00031342,5]
[340863547,1729956646232,-151.0,0.0003137,120]
[340863548,1729956646242,-150.0,0.000314,2]
[340863549,1729956646254,-710.8714,0.00031404,30]
[340863550,1729956646264,-151.594023,0.00031408,7]
[340863551,1729956646274,-151.0,0.00031408,7]
[340863552,1729956646284,-151.0,0.00031408,7]
[340863553,1729956646294,-680.745823,0.00031408,7]
[340863554,1729956646304,-680.745823,0.00031408,7]
[340863555,1729956646314,-300.0,0.000318,5]
[340863556,1729956646323,-1212.13333345,0.000318,3]
[340863557,1729956646333,-151.0,0.00031808,120]
[340863558,1729956646343,-1000.0,0.00032,120]
[340863559,1729956646353,-500.0,0.00032118,2]
[340863560,1729956646362,-1154.68,0.000322,14]
[340863561,1729956646372,-948.73,0.000322,30]
[340863562,1729956646382,-490.42,0.000322,30]
[340863563,1729956646391,-200.365236,0.000322,7]
[340863564,1729956646403,-151.0,0.000322,7]
[340863565,1729956646413,-200.365236,0.000322,7]
[340863566,1729956646423,-151.0,0.000322,7]
[340863567,1729956646432,-151.0,0.000322,7]
[340863568,1729956646441,-149031.17981711,0.0003267,2]
[340863569,1729956646451,-200.365236,0.0003267,7]
[340863570,1729956646461,-151.0,0.0003267,7]
[340863571,1729956646471,-200.365236,0.0003267,7]
[340863572,1729956646481,-151.0,0.0003267,7]
[340863573,1729956646490,-151.0,0.0003267,7]
[340863574,1729956646500,-500.0,0.00032673,5]
[340863575,1729956646510,-500.32337875,0.00032673,5]
[340863576,1729956646519,-151.0,0.00032712,120]
[340863577,1729956646529,-151.0,0.0003274,120]
[340863578,1729956646539,-844.31718609,0.00032748,2]
[340863579,1729956646549,-300.0,0.000328,7]
[340863581,1729956646558,-10107.4138335,0.000328,2]
[340863583,1729956646568,-151.0,0.000328,7]
[340863585,1729956646577,-151.0,0.000328,7]
[340863587,1729956646587,-151.0,0.000328,7]
[340863589,1729956646597,-152.67851,0.000328,7]
[340863591,1729956646607,-300.089091,0.000328,7]
[340863593,1729956646616,-1025.8,0.000328,31]
[340863595,1729956646625,-1025.8,0.000328,31]
[340863597,1729956646635,-1025.8,0.000328,31]
[340863599,1729956646644,-1025.8,0.000328,31]
[340863601,1729956646656,-1025.8,0.000328,31]
[340863603,1729956646665,-1025.8,0.000328,31]
[340863605,1729956646675,-1025.8,0.000328,31]
[340863607,1729956646685,-1025.8,0.000328,31]
[340863609,1729956646694,-1025.8,0.000328,31]
[340863611,1729956646703,-1025.8,0.000328,31]
[340863613,1729956646713,-1025.8,0.000328,31]
[340863615,1729956646722,-1025.8,0.000328,31]
[340863617,1729956646733,-1025.8,0.000328,31]
[340863619,1729956646744,-1025.8,0.000328,31]
[340863621,1729956646753,-1025.8,0.000328,31]
[340863623,1729956646762,-1025.8,0.000328,31]
[340863625,1729956646772,-1025.8,0.000328,31]
[340863627,1729956646781,-1025.8,0.000328,31]
[340863630,1729956646790,-1025.8,0.000328,31]
[340863632,1729956646800,-1025.8,0.000328,31]
[340863634,1729956646809,-1025.8,0.000328,31]
[340863636,1729956646818,-1025.8,0.000328,31]
[340863638,1729956646828,-1025.8,0.000328,31]
[340863640,1729956646837,-1025.8,0.000328,31]
[340863642,1729956646847,-150.5,0.00032847,120]
[340863644,1729956646856,-614.0,0.0003285,120]
[340863646,1729956646866,-150.5,0.00032857,120]
[340863648,1729956646875,-614.0,0.0003286,120]
[340863650,1729956646885,-150.5,0.0003287,120]
[340863652,1729956646894,-174.54,0.0003287,120]
[340863654,1729956646905,-614.0,0.0003287,120]
[340863656,1729956646914,-1500.0,0.00032876,2]
[340863658,1729956646923,-151.0,0.00032876,7]
[340863660,1729956646933,-151.0,0.00032876,7]
[340863662,1729956646943,-151.0,0.00032876,7]
[340863664,1729956646953,-500.0,0.00032876,2]
[340863666,1729956646963,-1000.0,0.00032876,2]
[340863668,1729956646972,-1000.0,0.00032876,2]
[340863670,1729956646982,-1000.0,0.00032876,2]
[340863672,1729956646991,-1000.0,0.00032876,2]
[340863674,1729956647001,-1000.0,0.00032876,2]
[340863676,1729956647010,-1000.0,0.00032876,2]
[340863678,1729956647020,-164.04265826,0.00032876,2]
[340863680,1729956647030,-1112.216181,0.00032877,120]
[340863682,1729956647039,-6136.66,0.00032877,30]
[340863684,1729956647049,-500.0,0.00032877,60]
[340863686,1729956647059,-151.0,0.00032877,14]
[340863689,1729956647069,-884.64307,0.00032877,14]
[340863691,1729956647079,-884.64307,0.00032877,14]
[340863693,1729956647090,-260.1251,0.000329,120]
[340863695,1729956647100,-500.0,0.00032973,5]
[340863697,1729956647111,-500.0,0.00032973,5]
[340863699,1729956647121,-172.85545822,0.00032973,5]
[340863701,1729956647130,-34961.12334278,0.00033,2]
[340863703,1729956647139,-80877.3165796,0.00033,5]
[340863705,1729956647151,-5490.12016707,0.00033,15]
[340863707,1729956647160,-928.61,0.00033,30]
[340863709,1729956647170,-151.0,0.00033,14]
[340863711,1729956647182,-151.0,0.00033,14]
[340863713,1729956647191,-151.0,0.00033,14]
[340863715,1729956647201,-151.318412,0.00033,14]
[340863717,1729956647211,-153.090233,0.00033,14]
[340863719,1729956647221,-151.98209,0.00033,14]
[340863721,1729956647231,-151.0,0.00033,14]
[340863723,1729956647240,-151.0,0.00033,14]
[340863725,1729956647253,-151.0,0.00033,14]
[340863727,1729956647263,-152.789343,0.00033,14]
[340863729,1729956647272,-151.0,0.00033,14]
[340863731,1729956647282,-236.550267,0.00033,14]
[340863733,1729956647291,-151.0,0.00033,14]
[340863736,1729956647301,-193.138288,0.00033,14]
[340863738,1729956647312,-210.213893,0.00033,14]
[340863740,1729956647322,-1000.0,0.00033,28]
[340863742,1729956647331,-1000.0,0.00033,28]
[340863744,1729956647341,-1000.0,0.00033,28]
[340863746,1729956647351,-1000.0,0.00033,28]
[340863748,1729956647360,-1000.0,0.00033,28]
[340863750,1729956647370,-1000.0,0.00033,28]
[340863752,1729956647379,-1000.0,0.00033,28]
[340863754,1729956647388,-1000.0,0.00033,28]
[340863756,1729956647397,-1000.0,0.00033,28]
[340863758,1729956647410,-1000.0,0.00033,28]
[340863760,1729956647419,-1000.0,0.00033,28]
[340863762,1729956647429,-1000.0,0.00033,28]
[340863764,1729956647439,-1000.0,0.00033,28]
[340863766,1729956647448,-1000.0,0.00033,28]
[340863768,1729956647458,-1000.0,0.00033,28]
[340863770,1729956647467,-185.34309,0.00033,14]
[340863772,1729956647477,-1000.0,0.00033,28]
[340863774,1729956647489,-1000.0,0.00033,28]
[340863775,1729956647498,-1000.0,0.00033,28]
[340863776,1729956647507,-1000.0,0.00033,28]
[340863777,1729956647517,-1000.0,0.00033,28]
[340863778,1729956647527,-1000.0,0.00033,28]
[340863779,1729956647536,-1000.0,0.00033,28]
[340863780,1729956647545,-1000.0,0.00033,28]
[340863781,1729956647554,-1000.0,0.00033,28]
[340863782,1729956647564,-1000.0,0.00033,28]
[340863783,1729956647573,-1000.0,0.00033,28]
[340863784,1729956647582,-1000.0,0.00033,28]
[340863785,1729956647592,-1000.0,0.00033,28]
[340863787,1729956647602,-1000.0,0.00033,28]
[340863790,1729956647611,-1000.0,0.00033,28]
[340863791,1729956647621,-1000.0,0.00033,28]
[340863793,1729956647630,-151.0,0.00033,14]
[340863795,1729956647639,-1000.0,0.00033,28]
[340863797,1729956647649,-1000.0,0.00033,28]
[340863799,1729956647659,-1000.0,0.00033,28]
[340863801,1729956647668,-1000.0,0.00033,28]
[340863803,1729956647678,-1000.0,0.00033,28]
[340863805,1729956647688,-1000.0,0.00033,28]
[340863807,1729956647698,-1000.0,0.00033,28]
[340863810,1729956647708,-1000.0,0.00033,28]
[340863812,1729956647719,-1000.0,0.00033,28]
[340863814,1729956647731,-1000.0,0.00033,28]
[340863816,1729956647742,-1000.0,0.00033,28]
[340863818,1729956647752,-1000.0,0.00033,28]
[340863821,1729956647763,-1000.0,0.00033,28]
[340863823,1729956647773,-1000.0,0.00033,28]
[340863825,1729956647783,-1000.0,0.00033,28]
[340863827,1729956647793,-1000.0,0.00033,28]
[340863829,1729956647804,-1000.0,0.00033,28]
[340863831,1729956647814,-1000.0,0.00033,28]
[340863833,1729956647824,-1000.0,0.00033,28]
[340863835,1729956647834,-1000.0,0.00033,28]
[340863837,1729956647844,-1000.0,0.00033,28]
[340863839,1729956647855,-1000.0,0.00033,28]
[340863841,1729956647865,-1000.0,0.00033,28]
[340863843,1729956647874,-1000.0,0.00033,28]
[340863845,1729956647884,-1000.0,0.00033,28]
[340863847,1729956647893,-1000.0,0.00033,28]
[340863850,1729956647903,-1000.0,0.00033,28]
[340863852,1729956647913,-1000.0,0.00033,28]
[340863854,1729956647923,-1000.0,0.00033,28]
[340863856,1729956647933,-1000.0,0.00033,28]
[340863858,1729956647944,-1000.0,0.00033,28]
[340863860,1729956647953,-1000.0,0.00033,28]
[340863862,1729956647964,-1000.0,0.00033,28]
[340863864,1729956647974,-1000.0,0.00033,28]
[340863866,1729956647983,-1000.0,0.00033,28]
[340863868,1729956647993,-1000.0,0.00033,28]
[340863870,1729956648003,-1000.0,0.00033,28]
[340863872,1729956648013,-1000.0,0.00033,28]
[340863874,1729956648022,-1000.0,0.00033,28]
[340863877,1729956648033,-1000.0,0.00033,28]
[340863879,1729956648042,-1000.0,0.00033,28]
[340863881,1729956648052,-1000.0,0.00033,28]
[340863883,1729956648062,-1000.0,0.00033,28]
[340863885,1729956648072,-1000.0,0.00033,28]
[340863887,1729956648082,-1000.0,0.00033,28]
[340863889,1729956648092,-1000.0,0.00033,28]
[340863891,1729956648102,-1000.0,0.00033,28]
[340863893,1729956648113,-1000.0,0.00033,28]
[340863895,1729956648123,-1000.0,0.00033,28]
[340863897,1729956648133,-1000.0,0.00033,28]
[340863899,1729956648143,-1000.0,0.00033,28]
[340863901,1729956648154,-535.335531,0.00033,28]
[340863903,1729956648164,-151.0,0.00033,14]
[340863905,1729956648179,-151.0,0.00033,14]
[340863907,1729956648189,-151.0,0.00033,14]
[340863909,1729956648198,-151.0,0.00033,14]
[340863911,1729956648208,-263.520227,0.00033,14]
[340863913,1729956648219,-884.64307,0.00033,14]
[340863915,1729956648228,-884.64307,0.00033,14]
[340863917,1729956648237,-680.745823,0.00033,14]
[340863919,1729956648248,-680.745823,0.00033,14]
[340863921,1729956648258,-680.745823,0.00033,14]
[340863923,1729956648268,-680.745823,0.00033,14]
[340863925,1729956648278,-680.745823,0.00033,14]
[340863928,1729956648288,-680.745823,0.00033,14]
[340863930,1729956648298,-151.0,0.00033,14]
[340863932,1729956648308,-175.361622,0.00033,14]
[340863934,1729956648319,-166.0,0.00033,2]
[340863936,1729956648328,-166.0,0.00033,2]
[340863938,1729956648337,-200.365236,0.00033,14]
[340863940,1729956648348,-200.365236,0.00033,14]
[340863942,1729956648360,-200.365236,0.00033,14]
[340863944,1729956648371,-151.0,0.00033,14]
[340863946,1729956648380,-151.0,0.00033,14]
[340863948,1729956648390,-151.0,0.00033,14]
[340863950,1729956648401,-200.365236,0.00033,14]
[340863952,1729956648410,-200.365236,0.00033,14]
[340863954,1729956648420,-200.365236,0.00033,14]
[340863956,1729956648430,-151.0,0.00033,14]
[340863958,1729956648440,-151.0,0.00033,14]
[340863960,1729956648450,-151.0,0.00033,14]
[340863962,1729956648460,-151.0,0.00033,14]
[340863964,1729956648470,-151.0,0.00033,14]
[340863966,1729956648480,-220.885744,0.00033,14]
[340863968,1729956648489,-160.0,0.00033073,3]
[340863970,1729956648500,-319.55703049,0.00033073,5]
[340863972,1729956648510,-3219.4633246,0.00033155,2]
[340863974,1729956648519,-151.6291068,0.00033242,3]
[340863976,1729956648530,-150.0,0.0003342,120]
[340863978,1729956648539,-500.0,0.00033488,2]
[340863981,1729956648550,-5000.0,0.000335,30]
[340863983,1729956648560,-2000.0,0.00033528,5]
[340863985,1729956648570,-2000.0,0.00033528,5]
[340863987,1729956648580,-1212.13333345,0.000336,3]
[340863989,1729956648591,-151.0,0.00033616,120]
[340863991,1729956648600,-3219.4633246,0.00033655,2]
[340863993,1729956648611,-2036.0,0.00033666,120]
[340863995,1729956648621,-300.0,0.000338,8]
[340863997,1729956648630,-1000.0,0.000338,120]
[340863999,1729956648640,-1500.0,0.00033835,3]
[340864001,1729956648652,-10000.0,0.000339,3]
[340864003,1729956648661,-1154.68,0.000339,30]
[340864005,1729956648671,-948.73,0.000339,30]
[340864007,1729956648681,-490.42,0.000339,30]
[340864009,1729956648691,-91578.11839237,0.00034,2]
[340864035,1729956648925,-12912.81632354,0.00034,2]
[340864075,1729956649305,-151.0,0.0003,7]
[340864077,1729956649315,-206.254859,0.000307,7]
[340864079,1729956649325,-24576.34269195,0.00034,2]
[340864081,1729956649334,-413.9,0.00034,120]
[340864083,1729956649344,-5000.0,0.00034,2]
[340864085,1729956649353,-181.13,0.00034,30]
[340864087,1729956649363,-1000.0,0.00034,120]
[340864089,1729956649373,-300.0,0.00034,2]
[340864091,1729956649382,-2000.0,0.00034,20]
[340864093,1729956649392,-702.0,0.00034,2]
[340864109,1729956649406,-152.675519,0.00034,14]
[340864111,1729956649590,-239.91711,0.00034,14]
[340864113,1729956649601,-151.0,0.00034,14]
[340864115,1729956649611,-151.0,0.00034,14]
[340864117,1729956649621,-151.0,0.00034,14]
[340864119,1729956649631,-151.0,0.00034,14]
[340864121,1729956649641,-151.0,0.00034,14]
[340864123,1729956649652,-151.0,0.00034,14]
[340864125,1729956649662,-884.64307,0.00034,14]
[340864127,1729956649672,-884.64307,0.00034,14]
[340864129,1729956649682,-680.745823,0.00034,14]
[340864131,1729956649691,-680.745823,0.00034,14]
[340864133,1729956649701,-200.365236,0.00034,14]
[340864135,1729956649711,-151.0,0.00034,14]
[340864137,1729956649720,-200.365236,0.00034,14]
[340864139,1729956649731,-151.0,0.00034,14]
[340864142,1729956649741,-150.0,0.00034008,120]
[340864144,1729956649751,-250.33675,0.0003403,2]
[340864146,1729956649761,-151.0,0.0003411,120]
[340864148,1729956649771,-3219.4633246,0.00034155,2]
[340864150,1729956649781,-928.61,0.000342,30]
[340864152,1729956649792,-2018.94,0.00034246,120]
[340864154,1729956649802,-551.26938282,0.00034247,60]
[340864156,1729956649812,-600.79744164,0.0003433,10]
[340864158,1729956649822,-239.033,0.0003436,2]
[340864160,1729956649832,-260.1251,0.000345,120]
[340864162,1729956649842,-5000.0,0.000345,35]
[340864164,1729956649852,-500.0,0.0003452,60]
[340864166,1729956649863,-151.0,0.00034521,120]
[340864168,1729956649873,-159547.72310349,0.00034622,2]
[340864179,1729956649962,-3183.99662353,0.00034622,2]
[340865524,1729957271831,160.966972,0.00013973,2]
[340865526,1729957346660,10000.0,0.00016,2]
[340865527,1729957358191,1749.0,0.00016,2]
[340865530,1729957510613,2805.0,0.00035026,62]
[340865531,1729957577581,3000.0,0.00035026,60]
[340865532,1729957624880,3000.0,0.00035026,43]
[340865533,1729957682330,2000.0,0.00035026,50]
[340865587,1729957832327,-300.0,0.00026599,2]
[340865589,1729957832339,-309.77353767,0.00026599,15]
[340865591,1729957832349,-164.56,0.000266,31]
[340865593,1729957832358,-164.56,0.000266,31]
[340865595,1729957832371,-164.56,0.000266,31]
[340865597,1729957832380,-164.56,0.000266,31]
[340865599,1729957832390,-164.56,0.000266,31]
[340865601,1729957832399,-164.56,0.000266,31]
[340865603,1729957832409,-164.56,0.000266,31]
[340865605,1729957832418,-164.56,0.000266,31]
[340865607,1729957832427,-164.56,0.000266,31]
[340865609,1729957832437,-164.56,0.000266,31]
[340865611,1729957832446,-164.56,0.000266,31]